bitfinex/quotes_ETHUSD_20220106
["timestamp","ask_amount","ask_price","bid_price","bid_amount"]
[1641439776022,0.71649,3489.3,3488.9,0.72100119]
[1641439776222,0.00384389,3489.5,3488.9,0.72100119]
[1641439776469,0.00384389,3489.5,3489.0,0.00397897]
[1641439776870,0.00384389,3489.5,3488.9,0.00454739]
[1641439777074,0.00384389,3489.5,3488.7,0.00568424]
[1641439777775,0.00384389,3489.5,3488.9,1.3612382]
[1641439777972,0.00384389,3489.5,3488.9,1.6612382]
[1641439778174,0.00384389,3489.5,3489.0,0.00397897]
[1641439778578,0.00384389,3489.5,3488.6,0.00625266]
[1641439778878,1.43314,3489.1,3488.5,0.00682108]
[1641439779480,1.43698426,3489.1,3488.5,0.00682108]
[1641439781321,0.00384426,3489.1,3488.5,0.00682108]
[1641439781521,0.00384426,3489.1,3488.6,0.7165183]
[1641439781724,0.00384426,3489.1,3488.5,1.43973858]
[1641439782024,0.00384426,3489.1,3488.6,0.00625266]
[1641439782420,0.72034426,3489.1,3488.7,0.64483]
[1641439782820,0.72034426,3489.1,3488.8,0.00511581]
[1641439783424,0.72034426,3489.1,3488.5,0.00682108]
[1641439786888,2.5812648,3489.0,3488.5,0.00682108]
[1641439787391,17.46672,3488.9,3487.8,0.01080005]
[1641439787587,16.75,3488.7,3487.8,0.01080005]
[1641439787824,1.07505602,3487.8,3486.8,0.01648428]
[1641439788021,1.07505602,3487.8,3487.2,0.01421059]
[1641439788326,1.07505602,3487.8,3486.8,0.01648428]
[1641439788523,16.866,3488.1,3486.8,0.01648428]
[1641439788723,0.12,3488.4,3486.8,0.01648428]
[1641439788926,7.791,3488.6,3486.8,0.01648428]
[1641439788927,6.791,3488.6,3487.3,0.7167501]
[1641439789123,11.1852,3488.7,3487.8,1.3376121]
[1641439789326,3.8073,3488.7,3487.8,1.3376121]
[1641439789524,1.43352,3488.3,3487.9,0.01023162]
[1641439790028,1.43352,3488.3,3487.7,0.01136847]
[1641439790226,0.71681,3488.1,3487.7,0.01136847]
[1641439790425,0.71681,3488.1,3487.1,0.7167966]
[1641439790625,3.54718786,3488.6,3487.4,1.17901948]
[1641439790626,1.43364,3488.2,3487.4,1.17901948]
[1641439790825,1.43364,3488.2,3487.2,0.01421059]
[1641439791029,17.75,3488.5,3487.1,0.7167966]
[1641439791030,2.88840677,3488.1,3487.5,0.01250532]
[1641439791228,1.8,3488.5,3487.2,0.01421059]
[1641439791229,16.75,3488.2,3487.2,0.01421059]
[1641439791468,2.93203241,3488.1,3487.2,0.01421059]
[1641439791768,1.4337,3487.9,3487.2,0.01421059]
[1641439791970,2.61427894,3487.8,3487.2,0.01421059]
[1641439792168,1.4337,3487.9,3487.2,0.01421059]
[1641439792672,0.71689,3487.6,3487.3,0.0008996]
[1641439793070,0.71689,3487.6,3487.4,0.01307374]
[1641439793675,7.2,3487.5,3487.4,0.01307374]
[1641439793877,7.2,3487.5,3485.5,3.2120403]
[1641439793878,7.2,3487.4,3485.5,3.2120403]
[1641439794075,0.71705,3486.7,3485.9,0.717039]
[1641439794475,0.71705,3486.7,3485.6,0.01023162]
[1641439794675,0.71705,3486.7,3486.1,2.62705987]
[1641439795077,0.71705,3486.7,3486.2,0.00682108]
[1641439796522,0.71701,3487.0,3486.2,0.00682108]
[1641439797323,1.2241,3487.3,3486.2,0.65208108]
[1641439797522,6.58194862,3487.7,3486.2,0.65208108]
[1641439797723,2.60284862,3487.8,3487.1,1.4636724]
[1641439797928,0.00113684,3487.6,3487.1,1.4636724]
[1641439798124,0.71695,3487.4,3487.2,0.00113685]
[1641439798730,0.71695,3487.4,3486.3,0.00625266]
[1641439798979,0.71697,3487.4,3486.3,0.00625266]
[1641439799369,0.71697,3487.4,3487.0,1.11609139]
[1641439799570,1.23307369,3487.8,3487.0,1.11609139]
[1641439799571,0.00227369,3487.8,3487.0,1.11609139]
[1641439799772,0.00227369,3487.8,3487.1,0.00170527]
[1641439799974,0.00170527,3487.7,3487.1,0.00170527]
[1641439800371,0.00170527,3487.7,3487.5,1.20065327]
[1641439800579,0.00170527,3487.7,3487.6,5.95659893]
[1641439800773,0.00170527,3487.7,3487.6,1.30659893]
[1641439802376,0.00170527,3487.7,3487.1,0.00170527]
[1641439803428,1.48610135,3487.6,3487.1,0.00170527]
[1641439803627,0.00170527,3487.7,3487.1,0.00170527]
[1641439804829,0.00170527,3487.7,3487.1,1.07851623]
[1641439805029,2.60284862,3488.5,3487.1,1.07851623]
[1641439805430,1.0,3488.4,3487.1,1.07851623]
[1641439805630,1.3,3488.4,3487.1,1.07851623]
[1641439806230,1.3,3488.4,3487.8,2.48079314]
[1641439806482,3.48493777,3488.7,3487.8,1.11131066]
[1641439806684,0.71681,3488.3,3487.8,1.11131066]
[1641439806885,0.72022054,3488.3,3487.8,1.11131066]
[1641439807082,0.72022054,3488.3,3487.3,0.3]
[1641439807284,0.72022054,3488.3,3487.2,0.7167629]
[1641439807484,18.04504418,3488.3,3487.4,0.00170527]
[1641439807882,2.64976941,3488.2,3487.4,0.00170527]
[1641439808085,2.65760353,3488.2,3487.4,0.00170527]
[1641439808288,0.00227369,3488.1,3487.4,0.00170527]
[1641439808491,0.71911369,3488.1,3487.4,0.00170527]
[1641439808687,0.00170527,3488.0,3487.4,0.00170527]
[1641439809089,0.00113685,3487.9,3487.4,0.00170527]
[1641439809287,0.14644894,3487.8,3487.4,0.00170527]
[1641439809689,0.14644894,3487.8,3487.6,1.34745471]
[1641439809887,0.14644894,3487.8,3487.4,0.00170527]
[1641439811629,0.14644894,3487.8,3487.4,2.90170527]
[1641439811827,0.14644894,3487.8,3487.6,1.26579415]
[1641439814473,0.00284212,3488.2,3487.6,1.26579415]
[1641439814674,0.14644894,3487.7,3487.6,1.26579415]
[1641439814876,0.14644894,3487.7,3487.5,0.00113685]
[1641439816080,0.14644894,3487.7,3487.5,0.71784575]
[1641439816478,0.14644894,3487.7,3487.6,8.50369433]
[1641439817077,0.14644894,3487.7,3487.6,1.30369433]
[1641439817379,0.14644894,3487.7,3487.6,8.50369433]
[1641439817380,4.894e-05,3487.7,3487.6,8.50369433]
[1641439817577,0.00227369,3488.1,3487.7,7.2]
[1641439817830,0.00227369,3488.1,3487.7,0.3]
[1641439818029,0.00170527,3488.0,3487.5,0.00113685]
[1641439818430,0.00113685,3487.9,3487.5,0.00113685]
[1641439818836,17.47188581,3488.6,3487.5,0.00113685]
[1641439819030,1.3,3488.5,3487.6,1.48536088]
[1641439819230,1.30454739,3488.5,3487.5,0.00113685]
[1641439819430,0.00397896,3488.4,3487.5,0.00113685]
[1641439820432,0.71682,3488.3,3487.5,0.00113685]
[1641439820833,0.00284212,3488.2,3487.5,0.00113685]
[1641439821238,0.00698072,3488.1,3487.5,0.00113685]
[1641439821472,0.00698072,3488.1,3487.5,1.29105725]
[1641439821674,0.00170527,3488.0,3487.5,1.29105725]
[1641439821874,0.00170527,3488.0,3487.5,2.58094725]
[1641439822075,0.00113685,3487.9,3487.8,0.64497]
[1641439822573,0.00113685,3487.9,3487.5,0.00113685]
[1641439827224,7.2,3487.8,3487.4,1.52847048]
[1641439827430,7.2,3487.8,3485.7,1.345]
[1641439827431,0.22164912,3487.0,3485.7,1.0]
[1641439827627,1.43454,3486.6,3485.7,1.0]
[1641439827827,0.7173274,3486.3,3485.8,0.0096632]
[1641439828029,16.75,3486.1,3485.8,0.0096632]
[1641439828631,0.1088,3486.1,3485.8,0.0096632]
[1641439828835,1.4562,3486.0,3485.8,0.0096632]
[1641439829078,16.75,3485.9,3485.8,0.0096632]
[1641439829272,17.2214,3485.9,3485.8,0.0096632]
[1641439829475,18.519,3485.9,3485.8,0.0096632]
[1641439829670,18.5166,3485.9,3485.8,0.0096632]
[1641439829871,19.87151556,3485.9,3485.8,0.0096632]
[1641439830072,0.345,3485.9,3485.8,0.0096632]
[1641439830274,1.0622017,3486.6,3485.8,0.05302951]
[1641439830474,2.54388646,3486.5,3485.8,0.05302951]
[1641439830678,0.345,3486.6,3485.9,0.00909477]
[1641439830875,0.108,3486.5,3485.9,0.00909477]
[1641439831075,0.345,3486.6,3485.9,0.00909477]
[1641439831875,0.345,3486.6,3485.9,1.1504536]
[1641439832174,0.345,3486.6,3486.0,0.0095042]
[1641439832724,0.345,3486.6,3486.1,0.00795793]
[1641439832925,2.74726401,3486.5,3486.1,0.00795793]
[1641439833124,0.345,3486.4,3486.1,0.00795793]
[1641439833328,2.70951723,3486.3,3486.1,0.00795793]
[1641439833529,5.645,3486.2,3486.1,0.00795793]
[1641439833730,0.4562,3486.2,3486.1,0.00795793]
[1641439833931,0.4554,3486.2,3486.1,0.00795793]
[1641439834128,0.645,3486.2,3486.1,0.00795793]
[1641439834531,3.18343749,3486.2,3486.1,0.00795793]
[1641439834830,0.645,3486.2,3486.1,0.00795793]
[1641439835031,1.7522,3486.2,3486.1,0.00795793]
[1641439835329,1.753,3486.2,3486.1,0.00795793]
[1641439835530,1.645,3486.2,3486.1,0.00795793]
[1641439836788,4.32111015,3486.2,3486.1,0.00795793]
[1641439836992,4.47118917,3486.2,3486.1,0.00795793]
[1641439837192,7.2,3486.1,3486.0,0.00097785]
[1641439837391,28.52826027,3486.1,3486.0,0.00097785]
[1641439837791,28.65466027,3486.1,3486.0,0.00097785]
[1641439837988,28.65706027,3486.1,3486.0,0.00097785]
[1641439838188,21.45466027,3486.1,3486.0,0.00097785]
[1641439838392,21.75706027,3486.1,3486.0,0.00097785]
[1641439838592,21.75786027,3486.1,3486.0,0.00097785]
[1641439838993,21.75946027,3486.1,3486.0,0.00097785]
[1641439839192,21.75786027,3486.1,3486.0,0.00097785]
[1641439839393,21.75546027,3486.1,3486.0,0.00097785]
[1641439839595,21.75946027,3486.1,3486.0,0.00097785]
[1641439839792,21.76026027,3486.1,3486.0,0.00097785]
[1641439839995,21.75866027,3486.1,3486.0,0.00097785]
[1641439840224,21.75786027,3486.1,3486.0,0.00097785]
[1641439840426,21.75706027,3486.1,3486.0,0.00097785]
[1641439840627,21.75546027,3486.1,3486.0,0.00097785]
[1641439841028,4.70306027,3486.1,3486.0,0.00097785]
[1641439841231,1.4586,3486.1,3486.0,0.00097785]
[1641439841434,1.345,3486.1,3486.0,0.00097785]
[1641439841627,0.345,3486.1,3486.0,0.00097785]
[1641439841827,3.15884727,3486.1,3486.0,0.00097785]
[1641439842026,3.16524727,3486.1,3486.0,0.00097785]
[1641439842230,3.16764727,3486.1,3486.0,0.00097785]
[1641439842427,19.92084727,3486.1,3486.0,0.00097785]
[1641439842628,19.92644727,3486.1,3486.0,0.00097785]
[1641439842828,19.93364727,3486.1,3486.0,0.00097785]
[1641439843028,21.23124727,3486.1,3486.0,0.00097785]
[1641439843228,21.22564727,3486.1,3486.0,0.00097785]
[1641439843433,21.22404727,3486.1,3486.0,0.00097785]
[1641439843632,21.22564727,3486.1,3486.0,0.00097785]
[1641439843973,16.75,3485.9,3485.8,2.8995473]
[1641439844172,17.095,3485.9,3485.8,2.8995473]
[1641439844371,18.5134,3485.9,3485.8,2.90125257]
[1641439844776,18.5118,3485.9,3485.8,2.90125257]
[1641439844974,18.5206,3485.9,3485.8,2.90125257]
[1641439845175,19.6106914,3485.9,3485.8,2.90125257]
[1641439845373,19.6162914,3485.9,3485.8,2.90125257]
[1641439845574,19.6130914,3485.9,3485.8,2.90125257]
[1641439845775,19.6210914,3485.9,3485.8,2.90125257]
[1641439845975,19.6178914,3485.9,3485.8,2.90125257]
[1641439846175,19.6154914,3485.9,3485.8,2.90125257]
[1641439846378,19.6122914,3485.9,3485.8,2.90125257]
[1641439846575,19.6130914,3485.9,3485.8,2.90125257]
[1641439846777,19.6130914,3485.9,3484.4,1.2369]
[1641439846778,16.75,3485.7,3484.4,1.2369]
[1641439846978,16.75,3485.0,3484.4,1.2369]
[1641439847181,2.1526191,3485.1,3484.5,0.0073895]
[1641439847384,1.43508,3485.1,3484.5,0.0073895]
[1641439847577,0.1096,3485.4,3484.5,0.0073895]
[1641439847825,0.3,3485.5,3484.4,0.00795793]
[1641439848024,1.112,3485.6,3484.7,1.18833563]
[1641439848228,2.54454,3485.6,3484.7,1.18833563]
[1641439848428,2.54294,3485.6,3484.8,0.00568423]
[1641439848629,3.92709,3485.8,3484.8,0.00568423]
[1641439848831,1.0,3485.5,3484.8,0.00568423]
[1641439849029,0.3,3485.5,3484.8,0.00568423]
[1641439849231,1.3,3485.7,3484.8,0.00568423]
[1641439849431,0.3,3485.7,3484.8,0.00568423]
[1641439849630,19.31012186,3485.6,3484.8,0.00568423]
[1641439849833,0.4088,3485.7,3484.8,0.00568423]
[1641439850037,1.108,3485.7,3484.4,0.00795793]
[1641439850241,2.67372186,3485.6,3484.4,0.00795793]
[1641439850434,0.345,3485.5,3484.8,2.9]
[1641439850633,0.71754,3485.1,3484.8,2.9]
[1641439850832,0.828686,3485.4,3484.9,0.00511581]
[1641439851033,0.3,3485.0,3484.9,0.00511581]
[1641439851479,0.4136,3485.3,3484.9,0.00511581]
[1641439851680,0.412,3485.3,3484.9,0.00511581]
[1641439851881,0.3,3485.3,3485.2,1.0835726]
[1641439852081,1.345,3485.5,3485.2,1.0835726]
[1641439852082,0.3,3485.5,3485.2,1.0835726]
[1641439852283,0.1112,3485.5,3485.2,1.08698314]
[1641439852480,0.112,3485.6,3485.3,0.00284211]
[1641439852688,1.4104,3485.7,3485.3,0.00284211]
[1641439852883,0.345,3486.0,3485.3,0.00284211]
[1641439853082,1.11682259,3486.2,3485.3,0.00284211]
[1641439853287,1.11682259,3486.2,3485.4,0.00097203]
[1641439853589,0.00113685,3486.1,3485.5,0.00170527]
[1641439853788,9.24428328,3487.3,3485.5,0.00170527]
[1641439853789,3.66658328,3487.3,3486.9,1.26749358]
[1641439853987,3.66658328,3487.3,3485.8,3.7296]
[1641439853988,0.00113685,3486.0,3485.8,3.7296]
[1641439854186,0.00113685,3486.0,3485.9,9.69456617]
[1641439854386,3.66658328,3487.3,3485.9,9.69456617]
[1641439854387,0.00511581,3486.9,3485.9,9.69456617]
[1641439854787,0.00454739,3486.8,3486.0,0.3]
[1641439854987,0.00454739,3486.8,3485.9,9.69456617]
[1641439855227,18.14262246,3487.4,3485.9,9.69456617]
[1641439855228,0.00397896,3486.7,3485.9,9.69456617]
[1641439855625,0.00341054,3486.6,3485.9,9.69456617]
[1641439856023,0.00284212,3486.5,3485.9,9.69456617]
[1641439856324,0.00227369,3486.4,3485.9,9.69456617]
[1641439856725,0.00170527,3486.3,3485.9,8.606]
[1641439857124,0.00113685,3486.2,3485.9,8.606]
[1641439857525,0.13277896,3486.7,3485.9,8.606]
[1641439857729,0.00478985,3486.2,3485.9,8.606]
[1641439859383,0.11598985,3486.2,3485.9,8.606]
[1641439859584,0.11358985,3486.2,3485.9,8.606]
[1641439859785,0.00478985,3486.2,3485.9,8.606]
[1641439861184,16.75,3486.1,3485.9,8.606]
[1641439861388,1.0173443,3486.1,3485.9,8.606]
[1641439861587,0.112,3486.0,3485.9,8.606]
[1641439861787,0.3,3486.1,3485.9,8.606]
[1641439861989,0.00478985,3486.2,3486.0,1.28347579]
[1641439863025,0.00478985,3486.2,3486.0,1.22758113]
[1641439863227,8.985e-05,3486.2,3486.0,1.52758113]
[1641439863429,0.22164912,3487.0,3486.1,7.2]
[1641439863628,0.22164912,3487.0,3486.1,7.20284212]
[1641439863828,0.00113685,3486.8,3486.2,0.00227369]
[1641439864227,8.597e-05,3487.0,3486.8,1.03933547]
[1641439864429,4.38344328,3488.5,3486.9,8.59316098]
[1641439864632,3.66658328,3488.5,3486.9,8.89316098]
[1641439864831,0.00284211,3487.3,3487.0,0.64512]
[1641439865228,0.00227369,3487.2,3487.0,0.64512]
[1641439865633,0.345,3489.1,3487.0,0.64512]
[1641439865634,0.00170527,3487.1,3487.0,0.64512]
[1641439865830,0.00170527,3487.1,3486.3,0.13819997]
[1641439866130,0.00113684,3487.0,3486.4,0.0022737]
[1641439866779,0.00113684,3487.0,3486.7,2.63352821]
[1641439868583,0.00113684,3487.0,3486.7,2.93352821]
[1641439868780,0.00113684,3487.0,3486.7,2.63352821]
[1641439871052,0.00113684,3487.0,3486.7,3.27867731]
[1641439872453,0.00113684,3487.0,3486.7,5.57867731]
[1641439873656,0.00113684,3487.0,3486.7,4.93352821]
[1641439874274,0.00113684,3487.0,3486.7,2.3]
[1641439875377,0.00113684,3487.0,3486.9,5.99401856]
[1641439875982,0.00113684,3487.0,3486.9,1.34401856]
[1641439877082,0.00113684,3487.0,3486.8,1.38869112]
[1641439877281,0.00113684,3487.0,3486.7,2.3]
[1641439883182,0.00498325,3487.0,3486.7,2.3]
[1641439885332,0.00498325,3487.0,3486.7,2.6]
[1641439885533,0.345,3489.0,3486.8,7.2]
[1641439885733,0.71676,3488.9,3487.2,0.645053]
[1641439885940,0.00170527,3487.3,3487.2,0.645053]
[1641439886941,0.00170527,3487.3,3487.2,11.34821525]
[1641439887443,0.01396404,3487.3,3486.8,0.00113684]
[1641439887641,0.01267429,3486.9,3486.8,0.00113684]
[1641439888043,0.00113685,3487.2,3486.8,0.00113684]
[1641439888444,0.00113685,3487.2,3487.1,1.36997527]
[1641439890088,0.00113685,3487.2,3487.1,8.16997527]
[1641439890489,0.00113685,3487.2,3487.1,8.46997527]
[1641439890789,0.00113685,3487.2,3487.1,9.59997527]
[1641439891590,0.00113685,3487.2,3487.1,13.20657527]
[1641439891792,3.685e-05,3487.2,3487.1,11.8366]
[1641439891992,6.17,3489.6,3487.2,7.2]
[1641439892196,6.17,3489.6,3488.3,0.64483]
[1641439892391,6.17,3489.6,3488.3,2.419647]
[1641439892392,0.01307374,3489.5,3488.3,2.419647]
[1641439892849,6.17,3489.6,3488.3,2.419647]
[1641439892850,0.01250532,3489.4,3488.3,2.419647]
[1641439893252,0.01193689,3489.3,3489.1,1.21512276]
[1641439893453,0.01193689,3489.3,3488.3,1.77483]
[1641439893757,6.17,3489.6,3488.3,1.77483]
[1641439893758,0.01136847,3489.2,3488.6,0.3]
[1641439893952,0.01136847,3489.2,3488.3,2.4195139]
[1641439894152,0.01080005,3489.1,3488.3,2.4195139]
[1641439894351,0.01080005,3489.1,3488.3,1.13]
[1641439894553,0.01023162,3489.0,3488.9,1.16438018]
[1641439894952,0.01023162,3489.0,3488.3,1.13]
[1641439895254,0.0096632,3488.9,3488.3,1.13]
[1641439895655,0.00909478,3488.8,3488.3,1.13]
[1641439895954,0.72532635,3488.7,3488.3,1.13]
[1641439896154,0.72532635,3488.7,3488.2,1.20454711]
[1641439896357,0.00795793,3488.6,3488.2,1.20454711]
[1641439896782,0.52421581,3488.6,3488.2,1.20454711]
[1641439897182,0.52421581,3488.6,3488.3,0.00113684]
[1641439897584,5.52421581,3488.6,3488.3,0.00113684]
[1641439897983,1.3,3488.5,3487.7,0.00454739]
[1641439898688,1.3,3488.5,3487.9,1.27513745]
[1641439899088,1.3,3488.5,3488.0,0.00284212]
[1641439900089,1.3,3488.5,3487.2,0.00738951]
[1641439900338,1.3,3488.5,3487.1,0.00795793]
[1641439900637,1.0,3488.5,3487.6,1.37113203]
[1641439901036,1.0,3488.5,3487.9,1.34082037]
[1641439901342,1.0,3488.5,3488.0,0.00284212]
[1641439902343,5.0,3488.6,3488.0,0.00284212]
[1641439902344,5.0,3488.6,3488.2,1.24606427]
[1641439902744,5.0,3488.6,3488.3,0.00113685]
[1641439902943,5.0,3488.6,3488.4,0.6447992]
[1641439904989,5.0,3488.6,3488.3,0.57429685]
[1641439905390,5.0,3488.6,3488.3,0.00113685]
[1641439906191,5.0,3488.6,3488.0,0.00284212]
[1641439906991,5.0,3488.6,3488.0,1.10341403]
[1641439907194,5.0,3488.6,3488.0,0.00284212]
[1641439907391,5.0,3488.6,3488.1,0.0022737]
[1641439907591,5.0,3488.6,3488.0,0.00284212]
[1641439910348,5.0,3488.6,3488.1,1.14636]
[1641439910546,5.0,3488.6,3488.2,4.69261944]
[1641439910849,5.0,3488.6,3488.3,8.60133685]
[1641439911594,5.0,3488.6,3488.5,1.31831322]
[1641439912197,5.0,3488.6,3488.3,8.60133685]
[1641439919087,5.0,3488.6,3488.3,9.17453685]
[1641439919689,5.0,3488.6,3488.4,0.64474]
[1641439919888,5.0,3488.6,3488.5,8.5997]
[1641439929897,6.0,3488.6,3488.5,8.5997]
[1641439930738,6.3,3488.6,3488.5,8.5997]
[1641439933236,8.900706,3488.6,3488.5,8.5997]
[1641439935087,6.65787957,3488.6,3488.5,8.5997]
[1641439935289,1.08584,3488.5,3488.3,0.00113685]
[1641439935486,1.08584,3488.5,3488.3,3.685e-05]
[1641439935487,17.05,3488.4,3488.3,3.685e-05]
[1641439935685,16.75,3488.3,3488.0,0.00174212]
[1641439935887,1.27643751,3488.2,3488.0,0.00174212]
[1641439936087,2.27643751,3488.2,3488.0,0.00174212]
[1641439936289,2.57643751,3488.2,3488.0,0.00174212]
[1641439936888,20.04339431,3488.2,3488.0,0.00174212]
[1641439937190,10.14776762,3488.1,3488.0,0.00174212]
[1641439937488,24.25,3488.0,3487.9,2.3]
[1641439937736,25.595,3488.0,3487.9,2.3]
[1641439939146,1.645,3488.0,3487.9,2.3]
[1641439939548,0.645,3488.0,3487.9,2.3]
[1641439940347,0.71704,3488.2,3487.9,2.3]
[1641439940552,11.17,3488.6,3487.9,2.3]
[1641439940946,0.00170527,3488.3,3487.9,2.3]
[1641439941246,0.00113685,3488.2,3488.1,1.39987415]
[1641439941884,0.00113685,3488.2,3487.9,2.3]
[1641439942887,0.00113685,3488.2,3488.0,1.31678873]
[1641439948977,1.00537385,3488.2,3488.0,1.31678873]
[1641439950879,1.00537385,3488.2,3488.0,1.96172003]
[1641439951680,1.00537385,3488.2,3488.0,2.67829003]
[1641439952079,1.00537385,3488.2,3488.0,1.96172003]
[1641439952379,1.00537385,3488.2,3488.1,1.22293984]
[1641439953133,1.00537385,3488.2,3488.0,1.96172003]
[1641439953736,1.00537385,3488.2,3488.0,1.31678873]
[1641439954435,1.00537385,3488.2,3488.0,2.19007873]
[1641439955438,1.00537385,3488.2,3488.0,1.89007873]
[1641439955638,1.00537385,3488.2,3488.0,1.79730649]
[1641439956684,0.00113685,3488.2,3488.0,0.79306949]
[1641439957686,0.00113685,3488.2,3488.0,1.36635949]
[1641439958087,0.00113685,3488.2,3488.0,0.79306949]
[1641439958891,5.00113685,3488.2,3488.0,0.79306949]
[1641439959093,5.00113685,3488.2,3488.0,1.09306949]
[1641439959295,5.00113685,3488.2,3488.0,1.73799899]
[1641439959893,5.00113685,3488.2,3488.0,1.43799899]
[1641439960093,5.00113685,3488.2,3488.0,2.45457899]
[1641439962145,5.00113685,3488.2,3488.0,1.3615095]
[1641439962347,5.00113685,3488.2,3487.9,2.3]
[1641439963854,5.30113685,3488.2,3487.9,2.3]
[1641439964084,1.0,3488.1,3487.9,2.3]
[1641439964685,24.30741311,3488.0,3487.9,1.3047]
[1641439964885,25.72653072,3488.0,3487.9,1.3047]
[1641439965184,27.02653072,3488.0,3487.9,0.4507]
[1641439965384,7.2,3487.9,3486.3,0.13819997]
[1641439965586,0.7170335,3487.5,3486.3,0.13819997]
[1641439965785,10.71034724,3487.9,3486.4,0.00909478]
[1641439965987,17.05,3487.8,3486.4,0.00909478]
[1641439966192,2.56034724,3487.7,3486.4,0.00909478]
[1641439966388,1.43423,3487.5,3485.7,0.01307374]
[1641439966588,16.75,3487.3,3485.7,0.01307374]
[1641439966788,16.75,3487.3,3485.3,0.43310101]
[1641439966789,0.7171929,3486.8,3485.5,0.01421059]
[1641439967186,1.4343929,3486.8,3485.5,0.01421059]
[1641439967387,2.70378018,3486.7,3485.5,0.01421059]
[1641439967587,1.0,3486.6,3485.5,0.01421059]
[1641439967834,2.675036,3486.7,3485.5,0.01421059]
[1641439968033,1.1228873,3486.2,3485.5,0.01421059]
[1641439970037,1.1228873,3486.2,3485.6,0.00092405]
[1641439970435,1.1228873,3486.2,3485.7,0.01307374]
[1641439971237,0.408,3486.1,3485.7,0.01307374]
[1641439971489,0.416,3486.1,3485.7,0.01307374]
[1641439971681,0.1072,3486.0,3485.7,0.01307374]
[1641439971884,0.1096,3486.0,3485.7,0.01307374]
[1641439972082,17.8644,3486.1,3485.7,0.01307374]
[1641439972282,17.858,3486.1,3485.7,0.01307374]
[1641439972581,0.71735,3486.0,3485.7,0.01307374]
[1641439972780,1.4347373,3486.0,3485.7,0.01307374]
[1641439972981,1.8419373,3486.0,3485.7,0.01307374]
[1641439973182,1.7347373,3486.0,3485.7,0.01307374]
[1641439973385,1.7347373,3486.0,3485.7,2.31307374]
[1641439973585,21.05372,3486.0,3485.7,2.31307374]
[1641439973786,21.05372,3486.0,3485.8,0.01250532]
[1641439973990,22.35,3485.9,3485.8,0.01250532]
[1641439974686,17.75,3485.9,3485.8,0.01250532]
[1641439975087,19.9383283,3485.9,3485.7,0.01307374]
[1641439975334,27.12421665,3485.8,3485.7,0.01307374]
[1641439975636,28.24341665,3485.8,3485.7,0.01307374]
[1641439975833,28.24981665,3485.8,3485.7,0.01307374]
[1641439976036,28.24341665,3485.8,3485.7,0.01307374]
[1641439976233,25.3668,3485.8,3485.7,0.01307374]
[1641439976434,25.3708,3485.8,3485.7,0.01307374]
[1641439976835,25.37,3485.8,3485.7,0.01307374]
[1641439977036,25.37,3485.8,3484.1,9.0]
[1641439977037,7.2,3485.6,3484.1,9.0]
[1641439977236,7.2,3485.4,3484.1,9.0]
[1641439977438,1.4352255,3485.2,3484.1,9.0]
[1641439977637,3.7501553,3485.1,3484.1,9.0]
[1641439977835,3.8829553,3485.1,3484.1,9.0]
[1641439978038,0.71766,3484.7,3484.1,9.0]
[1641439978237,0.7176814,3484.5,3484.1,9.0]
[1641439978441,2.3108714,3484.5,3484.1,9.0]
[1641439978640,17.227,3484.4,3484.1,9.0]
[1641439978840,17.6669,3484.4,3484.1,3.25692]
[1641439979096,7.2,3484.1,3482.9,0.00328797]
[1641439979300,18.9036029,3484.0,3482.9,0.00328797]
[1641439979497,16.75,3483.9,3483.0,0.01534743]
[1641439979695,9.73433158,3483.8,3482.7,0.33466585]
[1641439979897,9.73433158,3483.8,3482.7,0.23466585]
[1641439979898,0.345,3483.7,3482.7,0.23466585]
[1641439980097,7.2,3483.5,3481.9,0.01435989]
[1641439980296,7.2,3483.5,3481.8,8.22355679]
[1641439980297,0.718103,3483.0,3481.8,2.69051668]
[1641439980496,24.295,3482.9,3482.8,0.00117151]
[1641439980695,43.98992037,3482.9,3482.6,6.17]
[1641439980900,43.98912037,3482.9,3482.6,5.5607]
[1641439981098,1.26619353,3482.7,3482.0,0.00454739]
[1641439981498,0.1192,3482.8,3482.0,0.00454739]
[1641439981499,0.1208,3482.8,3482.0,0.00454739]
[1641439981696,0.00341054,3483.4,3481.9,0.13819997]
[1641439981697,0.1128,3483.3,3481.9,0.13819997]
[1641439981902,0.00341054,3483.4,3482.9,1.03459944]
[1641439982096,0.00227369,3483.2,3481.5,6.17123158]
[1641439982297,16.87,3483.6,3482.6,5.4593]
[1641439982298,0.00284212,3483.3,3482.6,5.4593]
[1641439982498,0.00170527,3483.1,3482.7,1.32039698]
[1641439982749,0.00227369,3483.2,3482.8,12.2609]
[1641439982949,0.2804,3483.7,3482.9,8.18103402]
[1641439982950,0.00113685,3483.0,3482.9,8.18103402]
[1641439983251,0.28153685,3483.0,3482.9,16.83798701]
[1641439984150,0.28153685,3483.0,3482.9,22.29728701]
[1641439984752,8.42818244,3485.1,3483.0,0.2815]
[1641439984954,8.42818244,3485.1,3483.1,0.345]
[1641439984955,2.3358,3485.1,3483.1,0.345]
[1641439985154,0.01236355,3486.0,3483.3,1.46549226]
[1641439985155,0.00966319,3484.7,3483.3,1.46549226]
[1641439985353,0.00966319,3484.7,3484.2,1.30778764]
[1641439985552,0.00909477,3484.6,3484.2,1.89258764]
[1641439985754,0.00909477,3484.6,3484.3,3.8076]
[1641439985953,0.00852635,3484.5,3484.3,3.8076]
[1641439986259,0.01268757,3485.1,3484.4,1.47367048]
[1641439986696,0.01268757,3485.1,3484.1,5.4593]
[1641439986899,16.75,3484.9,3484.1,5.4593]
[1641439987099,0.01224601,3484.3,3484.1,5.4593]
[1641439987499,0.345,3484.5,3484.1,5.4593]
[1641439987500,0.00682108,3484.2,3484.1,5.4593]
[1641439987699,0.00682108,3484.2,3484.1,6.86337726]
[1641439987899,0.00795792,3484.2,3484.1,6.86337726]
[1641439989200,0.00795792,3484.2,3484.1,7.16337726]
[1641439989805,0.00795792,3484.2,3484.1,11.36337726]
[1641439990444,0.01273546,3487.0,3484.2,7.2]
[1641439990643,0.01273546,3487.0,3484.7,0.6454319]
[1641439990844,0.00341054,3485.0,3484.7,0.6454319]
[1641439991042,0.00341054,3485.0,3484.8,8.6088]
[1641439991243,0.00284212,3484.9,3484.8,9.2538]
[1641439991443,0.00284212,3484.9,3484.8,10.52363681]
[1641439991643,0.00284212,3484.9,3484.8,12.10460695]